[Event "Chpt Reg Jeunes Occitanie 2026 - Espalion"]
[Site "Espalion, France"]
[Round "5.11"]
[ECO "?"]
[Annotator "?"]
[TimeControl "1h30 + 30sec/cp"]

1. d4 {[%clk 1:30:02][%emt 0:00:56]} 1... Nf6 {[%clk 1:30:34][%emt 0:00:27]}
2. c4 {[%clk 1:30:27][%emt 0:00:06]} 2... g6 {[%clk 1:30:55][%emt 0:00:09]} 3.
f3 {[%clk 1:30:36][%emt 0:00:22]} 3... Bg7 {[%clk 1:31:14][%emt 0:00:09]} 4.
e4 {[%clk 1:31:04][%emt 0:00:04]} 4... d6 {[%clk 1:31:35][%emt 0:00:08]} 5.
Nc3 {[%clk 1:30:43][%emt 0:00:51]} 5... O-O {[%clk 1:31:55][%emt 0:00:11]} 6.
Bg5 {[%clk 1:31:10][%emt 0:00:02]} 6... h6 {[%clk 1:32:03][%emt 0:00:22]} 7.
Be3 {[%clk 1:31:38][%emt 0:00:02]} 7... c5 {[%clk 1:32:23][%emt 0:00:11]} 8.
d5 {[%clk 1:32:02][%emt 0:00:07]} 8... e6 {[%clk 1:32:44][%emt 0:00:08]} 9.
Qd2 {[%clk 1:32:26][%emt 0:00:06]} 9... exd5 {[%clk 1:32:50][%emt 0:00:25]}
10. cxd5 {[%clk 1:32:55][%emt 0:00:01]} 10... a6 {[%clk 1:31:11][%emt 0:02:08]}
 11. a4 {[%clk 1:33:00][%emt 0:00:25]} 11... Re8 {[%clk 1:31:32][%emt 0:00:08]}
 12. Bc4 {[%clk 1:32:41][%emt 0:00:50]} 12... Nbd7 {[%clk 1:30:47][%emt
0:01:15]} 13. Be2 {[%clk 1:31:45][%emt 0:01:25]} 13... Ne5 {[%clk
1:30:17][%emt 0:01:00]} 14. Bxh6 {[%clk 1:31:45][%emt 0:00:31]} 14... Nxe4
{[%clk 1:29:45][%emt 0:01:01]} 15. Nxe4 {[%clk 1:32:00][%emt 0:00:16]} 15...
Qh4+ {[%clk 1:26:52][%emt 0:03:22]} 16. g3 {[%clk 1:32:23][%emt 0:00:07]}
16... Qxh6 {[%clk 1:27:12][%emt 0:00:10]} 17. Qxh6 {[%clk 1:32:09][%emt
0:00:45]} 17... Bxh6 {[%clk 1:27:37][%emt 0:00:05]} 18. Nf6+ {[%clk
1:32:14][%emt 0:00:26]} 18... Kf8 {[%clk 1:28:02][%emt 0:00:05]} 19. Nxe8
{[%clk 1:32:28][%emt 0:00:16]} 19... Kxe8 {[%clk 1:28:27][%emt 0:00:05]} 20.
f4 {[%clk 1:24:14][%emt 0:08:43]} 20... Ng4 {[%clk 1:26:11][%emt 0:02:46]} 21.
Ra3 {[%clk 1:21:33][%emt 0:03:11]} 21... Bg7 {[%clk 1:21:06][%emt 0:05:35]}
22. Rb3 {[%clk 1:18:40][%emt 0:03:24]} 22... Nf6 {[%clk 1:09:12][%emt 0:12:23]}
 23. Bf3 {[%clk 1:09:09][%emt 0:10:02]} 23... Bd7 {[%clk 1:00:13][%emt
0:09:28]} 24. Rxb7 {[%clk 1:02:06][%emt 0:07:32]} 24... Bxa4 {[%clk
1:00:26][%emt 0:00:19]} 25. Ne2 {[%clk 0:56:30][%emt 0:06:06]} 25... Nd7
{[%clk 0:55:19][%emt 0:05:37]} 26. Nc3 {[%clk 0:38:53][%emt 0:18:07]} 26...
Bxc3+ {[%clk 0:55:34][%emt 0:00:15]} 27. bxc3 {[%clk 0:39:22]} 27... Bb5
{[%clk 0:55:54][%emt 0:00:09]} 28. Bg4 {[%clk 0:30:25][%emt 0:09:28]} 28... f5
{[%clk 0:55:51][%emt 0:00:33]} 29. Be2 {[%clk 0:29:47][%emt 0:01:08]} 29... c4
{[%clk 0:53:39][%emt 0:02:43]} 30. Kf2 {[%clk 0:14:56][%emt 0:16:07]} 30...
Kd8 {[%clk 0:52:25][%emt 0:01:39]} 31. Ra1 {[%clk 0:15:53][%emt 0:01:34]}
31... Rc8 {[%clk 0:51:03][%emt 0:01:51]} 32. Bf3 {[%clk 0:12:59][%emt 0:03:25]}
 32... Rc5 {[%clk 0:49:16][%emt 0:02:16]} 33. Ra7 {[%clk 0:11:03][%emt
0:02:27]} 33... Kc8 {[%clk 0:49:31][%emt 0:00:15]} 34. Rb1 {[%clk
0:10:08][%emt 0:01:25]} 34... Nf6 {[%clk 0:44:11][%emt 0:05:50]} 35. Rg7
{[%clk 0:06:22][%emt 0:04:15]} 35... Nxd5 {[%clk 0:43:07][%emt 0:01:35]} 36.
Rc1 {[%clk 0:05:21][%emt 0:01:32]} 36... Be8 {[%clk 0:42:56][%emt 0:00:40]}
37. Re1 {[%clk 0:05:39][%emt 0:00:13]} 37... Nc7 {[%clk 0:42:38][%emt 0:00:48]}
 38. Rxc7+ {[%clk 0:05:10][%emt 0:00:59]} 38... Kxc7 {[%clk 0:43:02][%emt
0:00:05]} 39. Rxe8 {[%clk 0:05:38][%emt 0:00:03]} 39... d5 {[%clk
0:43:26][%emt 0:00:06]} 40. Ke3 {[%clk 0:05:33][%emt 0:00:35]} 40... Kb7
{[%clk 0:42:18][%emt 0:01:37]} 41. Kd4 {[%clk 0:05:48][%emt 0:00:16]} 41...
Rb5 {[%clk 0:42:42][%emt 0:00:05]} 42. Bxd5+ {[%clk 0:06:06][%emt 0:00:12]}
42... Ka7 {[%clk 0:43:10][%emt 0:00:02]} 43. Ra8+ {[%clk 0:05:57][%emt
0:00:39]} 43... Kb6 {[%clk 0:43:35][%emt 0:00:05]} 44. Rxa6+ {[%clk
0:06:15][%emt 0:00:12]} 44... Kc7 {[%clk 0:43:48][%emt 0:00:17]} 45. Rxg6
{[%clk 0:06:28][%emt 0:00:18]} 45... Rc5 {[%clk 0:44:08][%emt 0:00:10]} 46.
Kxc5 {[%clk 0:06:50][%emt 0:00:08]} 1-0

[White "BEUCHER, Simon"]
[Black "JARRY, Pierre"]
[WhiteElo "1765"]
[BlackElo "1717"]
[Result "1/2-1/2"]
[Date "2026.03.06"]

[Event "Chpt Reg Jeunes Occitanie 2026 - Espalion"]
[Site "Espalion, France"]
[Round "5.12"]
[ECO "?"]
[Annotator "?"]
[TimeControl "1h30 + 30sec/cp"]

1. e4 {[%clk 1:30:44][%emt 0:00:15]} 1... c5 {[%clk 1:30:46][%emt 0:00:15]} 2.
Nf3 {[%clk 1:31:04][%emt 0:00:10]} 2... Nc6 {[%clk 1:31:05][%emt 0:00:11]} 3.
Bb5 {[%clk 1:31:12][%emt 0:00:22]} 3... g6 {[%clk 1:30:57][%emt 0:00:37]} 4.
c3 {[%clk 1:30:19][%emt 0:01:24]} 4... Nf6 {[%clk 1:26:57][%emt 0:04:30]} 5.
e5 {[%clk 1:27:46][%emt 0:03:03]} 5... Nd5 {[%clk 1:26:38][%emt 0:00:49]} 6.
O-O {[%clk 1:25:12][%emt 0:03:04]} 6... Bg7 {[%clk 1:24:57][%emt 0:02:11]} 7.
d4 {[%clk 1:23:43][%emt 0:01:59]} 7... cxd4 {[%clk 1:23:01][%emt 0:02:26]} 8.
cxd4 {[%clk 1:23:30][%emt 0:00:44]} 8... O-O {[%clk 1:22:08][%emt 0:01:23]} 9.
Nc3 {[%clk 1:22:00][%emt 0:02:00]} 9... Nxc3 {[%clk 1:18:22][%emt 0:04:16]}
10. bxc3 {[%clk 1:21:24][%emt 0:01:06]} 10... d6 {[%clk 1:13:41][%emt 0:05:12]}
 11. Bxc6 {[%clk 1:13:08][%emt 0:08:45]} 11... bxc6 {[%clk 1:13:38][%emt
0:00:33]} 12. Bf4 {[%clk 1:11:53][%emt 0:01:45]} 12... c5 {[%clk 1:08:16][%emt
0:05:53]} 13. exd6 {[%clk 1:06:25][%emt 0:05:57]} 13... exd6 {[%clk
1:05:47][%emt 0:02:58]} 14. Rb1 {[%clk 1:02:30][%emt 0:04:25]} 14... Bg4
{[%clk 0:57:19][%emt 0:08:59]} 15. h3 {[%clk 0:56:14][%emt 0:06:46]} 15... Qf6
{[%clk 0:42:11][%emt 0:15:38]} 16. Bg5 {[%clk 0:50:41][%emt 0:06:03]} 16...
Qxg5 {[%clk 0:38:44][%emt 0:03:56]} 17. Nxg5 {[%clk 0:50:43][%emt 0:00:29]}
17... Bxd1 {[%clk 0:39:06][%emt 0:00:08]} 18. Rfxd1 {[%clk 0:51:00][%emt
0:00:13]} 18... cxd4 {[%clk 0:39:25][%emt 0:00:11]} 19. cxd4 {[%clk
0:51:05][%emt 0:00:25]} 19... Rab8 {[%clk 0:38:35][%emt 0:01:20]} 20. d5
{[%clk 0:47:04][%emt 0:04:31]} 20... Rfc8 {[%clk 0:34:32][%emt 0:04:33]} 21.
Ne4 {[%clk 0:44:57][%emt 0:02:37]} 21... Be5 {[%clk 0:31:45][%emt 0:03:17]}
22. g3 {[%clk 0:41:03][%emt 0:04:23]} 22... Rxb1 {[%clk 0:30:43][%emt 0:01:33]}
 23. Rxb1 {[%clk 0:41:24][%emt 0:00:09]} 23... Rc2 {[%clk 0:31:04][%emt
0:00:09]} 24. f4 {[%clk 0:38:50][%emt 0:03:04]} 24... Bd4+ {[%clk
0:30:35][%emt 0:00:59]} 25. Kf1 {[%clk 0:38:36][%emt 0:00:44]} 25... Bc5
{[%clk 0:29:30][%emt 0:01:36]} 26. Nxc5 {[%clk 0:37:36][%emt 0:01:29]} 26...
Rxc5 {[%clk 0:29:52][%emt 0:00:08]} 27. Rb8+ {[%clk 0:36:09][%emt 0:01:57]}
27... Kg7 {[%clk 0:30:14][%emt 0:00:09]} 28. Rb7 {[%clk 0:28:10][%emt 0:08:28]}
 28... a5 {[%clk 0:29:53][%emt 0:00:51]} 29. a4 {[%clk 0:27:16][%emt 0:01:25]}
29... Rxd5 {[%clk 0:29:19][%emt 0:01:03]} 30. Rb5 {[%clk 0:25:46][%emt
0:02:00]} 30... Rxb5 {[%clk 0:27:00][%emt 0:02:49]} 31. axb5 {[%clk
0:26:10][%emt 0:00:06]} 31... a4 {[%clk 0:25:05][%emt 0:02:26]} 32. b6 {[%clk
0:26:34][%emt 0:00:06]} 32... a3 {[%clk 0:25:31][%emt 0:00:04]} 33. b7 {[%clk
0:27:01][%emt 0:00:02]} 33... a2 {[%clk 0:25:53][%emt 0:00:09]} 34. b8=Q
{[%clk 0:27:18][%emt 0:00:13]} 34... a1=Q+ {[%clk 0:26:18][%emt 0:00:05]} 35.
Ke2 {[%clk 0:26:52][%emt 0:00:55]} 35... d5 {[%clk 0:26:19][%emt 0:00:30]} 36.
Qd6 {[%clk 0:25:06][%emt 0:02:16]} 36... Qd4 {[%clk 0:23:34][%emt 0:03:14]}
37. Qd8 {[%clk 0:19:34][%emt 0:06:02]} 37... Qe4+ {[%clk 0:22:07][%emt
0:01:56]} 38. Kd2 {[%clk 0:19:26][%emt 0:00:39]} 38... d4 {[%clk 0:21:54][%emt
0:00:44]} 39. Qg5 {[%clk 0:18:38][%emt 0:01:18]} 39... Qe3+ {[%clk
0:18:12][%emt 0:04:11]} 40. Kd1 {[%clk 0:18:08][%emt 0:01:01]} 40... d3 {[%clk
0:15:09][%emt 0:03:32]} 41. Qe5+ {[%clk 0:17:27][%emt 0:01:11]} 41... Qxe5
{[%clk 0:15:32][%emt 0:00:07]} 42. fxe5 {[%clk 0:16:55][%emt 0:01:02]} 42...
f6 {[%clk 0:15:47][%emt 0:00:15]} 43. exf6+ {[%clk 0:17:14][%emt 0:00:11]}
43... Kxf6 {[%clk 0:16:12][%emt 0:00:05]} 44. Kd2 {[%clk 0:17:29][%emt
0:00:14]} 44... Ke5 {[%clk 0:16:36][%emt 0:00:07]} 45. Kxd3 {[%clk
0:17:46][%emt 0:00:13]} 45... Kd5 {[%clk 0:16:58][%emt 0:00:08]} 46. h4 {[%clk
0:16:58][%emt 0:01:18]} 46... h5 {[%clk 0:15:23][%emt 0:02:05]} 47. Ke3 {[%clk
0:16:59][%emt 0:00:30]} 47... Ke5 {[%clk 0:15:47][%emt 0:00:06]} 48. Kf3
{[%clk 0:17:06][%emt 0:00:23]} 48... Kf5 {[%clk 0:15:53][%emt 0:00:23]} 49.
Ke3 {[%clk 0:17:06][%emt 0:00:30]} 49... Kg4 {[%clk 0:15:16][%emt 0:01:08]}
50. Kf2 {[%clk 0:17:29][%emt 0:00:06]} 50... Kh3 {[%clk 0:11:47][%emt 0:03:58]}
 51. Kf3 {[%clk 0:17:40][%emt 0:00:19]} 1/2-1/2

[White "PAPION, Simon"]
[Black "PETITGRAND, Leo"]
[WhiteElo "1718"]
[BlackElo "1644"]
[Result "0-1"]
[Date "2026.03.06"]

[Event "Chpt Reg Jeunes Occitanie 2026 - Espalion"]
[Site "Espalion, France"]
[Round "5.13"]
[ECO "?"]
[Annotator "?"]
[TimeControl "1h30 + 30sec/cp"]

1. d4 {[%clk 1:30:58]} 1... Nf6 {[%clk 1:30:57][%emt 0:00:04]} 2. c4 {[%clk
1:31:22][%emt 0:00:06]} 2... e6 {[%clk 1:31:23][%emt 0:00:04]} 3. Nc3 {[%clk
1:31:39][%emt 0:00:13]} 3... Bb4 {[%clk 1:31:49][%emt 0:00:05]} 4. Bg5 {[%clk
1:29:44][%emt 0:02:24]} 4... c5 {[%clk 1:31:52][%emt 0:00:28]} 5. e3 {[%clk
1:28:32][%emt 0:01:41]} 5... Qa5 {[%clk 1:32:18][%emt 0:00:04]} 6. Bxf6 {[%clk
1:19:33][%emt 0:09:29]} 6... Bxc3+ {[%clk 1:32:40][%emt 0:00:08]} 7. bxc3
{[%clk 1:19:09][%emt 0:00:54]} 7... Qxc3+ {[%clk 1:32:19][%emt 0:00:51]} 8.
Ke2 {[%clk 1:19:26][%emt 0:00:13]} 8... gxf6 {[%clk 1:32:45][%emt 0:00:05]} 9.
Rc1 {[%clk 1:18:24][%emt 0:01:31]} 9... Qa5 {[%clk 1:32:46][%emt 0:00:29]} 10.
Qd2 {[%clk 1:15:53][%emt 0:03:00]} 10... Qxd2+ {[%clk 1:33:07][%emt 0:00:10]}
11. Kxd2 {[%clk 1:16:18][%emt 0:00:04]} 11... cxd4 {[%clk 1:32:44][%emt
0:00:54]} 12. exd4 {[%clk 1:16:36][%emt 0:00:13]} 12... Nc6 {[%clk
1:32:59][%emt 0:00:15]} 13. Nf3 {[%clk 1:16:07][%emt 0:00:59]} 13... b6 {[%clk
1:32:26][%emt 0:01:02]} 14. Bd3 {[%clk 1:14:50][%emt 0:01:47]} 14... Bb7
{[%clk 1:32:07][%emt 0:00:49]} 15. Rb1 {[%clk 1:14:22][%emt 0:00:58]} 15...
Rg8 {[%clk 1:28:06][%emt 0:04:31]} 16. Rhg1 {[%clk 1:11:17][%emt 0:03:36]}
16... f5 {[%clk 1:25:54][%emt 0:02:41]} 17. Ke3 {[%clk 1:04:41][%emt 0:07:05]}
17... Ba6 {[%clk 1:22:15][%emt 0:04:10]} 18. g3 {[%clk 1:00:53][%emt 0:04:17]}
18... Na5 {[%clk 1:17:49][%emt 0:04:57]} 19. Rgc1 {[%clk 1:00:47][%emt
0:00:36]} 19... Ke7 {[%clk 1:15:47][%emt 0:02:32]} 20. c5 {[%clk 0:57:36][%emt
0:03:41]} 20... Bxd3 {[%clk 1:16:10][%emt 0:00:07]} 21. Kxd3 {[%clk
0:57:58][%emt 0:00:09]} 21... bxc5 {[%clk 1:15:25][%emt 0:01:15]} 22. Rxc5
{[%clk 0:58:10][%emt 0:00:17]} 22... Nc6 {[%clk 1:14:26][%emt 0:01:29]} 23.
Rb7 {[%clk 0:57:34][%emt 0:01:05]} 23... Rab8 {[%clk 1:13:19][%emt 0:01:37]}
24. Rc7 {[%clk 0:57:41][%emt 0:00:23]} 24... Kd6 {[%clk 1:13:25][%emt 0:00:25]}
 25. R7xc6+ {[%clk 0:57:34][%emt 0:00:36]} 25... dxc6 {[%clk 1:13:28][%emt
0:00:27]} 26. Ne5 {[%clk 0:57:52][%emt 0:00:13]} 26... Rgc8 {[%clk
1:11:54][%emt 0:02:03]} 27. Nxf7+ {[%clk 0:57:59][%emt 0:00:23]} 27... Ke7
{[%clk 1:12:12][%emt 0:00:13]} 28. Ne5 {[%clk 0:57:37][%emt 0:00:52]} 28...
Rb2 {[%clk 1:12:09][%emt 0:00:32]} 29. Ra5 {[%clk 0:57:21][%emt 0:00:46]}
29... Rc7 {[%clk 1:10:57][%emt 0:01:43]} 30. Ke3 {[%clk 0:57:19][%emt 0:00:31]}
 30... Kf6 {[%clk 1:10:23][%emt 0:01:04]} 31. h4 {[%clk 0:51:47][%emt 0:06:01]}
 31... c5 {[%clk 1:07:20][%emt 0:03:34]} 32. Nd3 {[%clk 0:48:02][%emt 0:04:15]}
 32... cxd4+ {[%clk 1:05:32][%emt 0:02:18]} 33. Kxd4 {[%clk 0:48:22][%emt
0:00:11]} 33... Re2 {[%clk 1:02:58][%emt 0:03:02]} 34. Ra6 {[%clk
0:47:31][%emt 0:01:23]} 34... Re4# {[%clk 1:01:36][%emt 0:01:51]} 0-1

[White "MARTINEZ, Julien"]
[Black "VILLEMIN CHARTIER, Elias"]
[WhiteElo "1920"]
[BlackElo "1900"]
[Result "0-1"]
[Date "2026.03.06"]

[Event "Chpt Reg Jeunes Occitanie 2026 - Espalion"]
[Site "Espalion, France"]
[Round "5.14"]
[ECO "?"]
[Annotator "?"]
[TimeControl "1h30 + 30sec/cp"]

1. e4 {[%clk 1:30:55][%emt 0:00:05]} 1... c6 {[%clk 1:30:33][%emt 0:00:28]} 2.
Nc3 {[%clk 1:31:15][%emt 0:00:10]} 2... d5 {[%clk 1:30:58][%emt 0:00:05]} 3.
Nf3 {[%clk 1:31:40][%emt 0:00:05]} 3... dxe4 {[%clk 1:31:24][%emt 0:00:05]} 4.
Nxe4 {[%clk 1:32:05][%emt 0:00:05]} 4... Nf6 {[%clk 1:31:48][%emt 0:00:06]} 5.
Qe2 {[%clk 1:32:29][%emt 0:00:05]} 5... Nxe4 {[%clk 1:32:05][%emt 0:00:13]} 6.
Qxe4 {[%clk 1:32:55][%emt 0:00:04]} 6... Qd5 {[%clk 1:32:30][%emt 0:00:05]} 7.
Qh4 {[%clk 1:31:53][%emt 0:01:31]} 7... Qf5 {[%clk 1:32:54][%emt 0:00:07]} 8.
Bd3 {[%clk 1:25:13][%emt 0:07:09]} 8... Qg4 {[%clk 1:33:16][%emt 0:00:10]} 9.
Qg3 {[%clk 1:25:36][%emt 0:00:07]} 9... Qxg3 {[%clk 1:31:52][%emt 0:01:53]}
10. hxg3 {[%clk 1:25:41][%emt 0:00:25]} 10... g6 {[%clk 1:29:55][%emt 0:02:27]}
 11. c3 {[%clk 1:24:15][%emt 0:01:56]} 11... Bg7 {[%clk 1:27:40][%emt 0:02:44]}
 12. Bc2 {[%clk 1:22:42][%emt 0:02:04]} 12... c5 {[%clk 1:23:15][%emt 0:04:55]}
 13. a4 {[%clk 1:18:40][%emt 0:04:31]} 13... Nc6 {[%clk 1:20:35][%emt 0:03:11]}
 14. a5 {[%clk 1:17:21][%emt 0:01:49]} 14... Ne5 {[%clk 0:59:46][%emt 0:21:19]}
 15. Be4 {[%clk 1:04:14][%emt 0:13:34]} 15... f5 {[%clk 0:50:16][%emt 0:10:03]}
 16. Bd5 {[%clk 0:57:04][%emt 0:07:37]} 16... Nd3+ {[%clk 0:38:23][%emt
0:12:26]} 17. Ke2 {[%clk 0:57:15][%emt 0:00:19]} 17... Nxc1+ {[%clk
0:36:38][%emt 0:02:15]} 18. Rhxc1 {[%clk 0:57:09][%emt 0:00:36]} 18... e6
{[%clk 0:36:50][%emt 0:00:18]} 19. Bb3 {[%clk 0:57:30][%emt 0:00:07]} 19...
Ke7 {[%clk 0:33:22][%emt 0:04:00]} 20. d4 {[%clk 0:55:10][%emt 0:02:50]} 20...
Bd7 {[%clk 0:32:05][%emt 0:01:47]} 21. Ba4 {[%clk 0:45:55][%emt 0:09:45]}
21... cxd4 {[%clk 0:26:35][%emt 0:06:00]} 22. Bxd7 {[%clk 0:43:58][%emt
0:02:27]} 22... d3+ {[%clk 0:23:58][%emt 0:03:08]} 23. Kxd3 {[%clk
0:44:05][%emt 0:00:23]} 23... Rhd8 {[%clk 0:24:00][%emt 0:00:28]} 24. Rd1
{[%clk 0:43:36][%emt 0:00:57]} 24... Rxd7+ {[%clk 0:24:18][%emt 0:00:13]} 25.
Kc2 {[%clk 0:43:57][%emt 0:00:08]} 25... Rad8 {[%clk 0:24:02][%emt 0:00:46]}
26. Rxd7+ {[%clk 0:43:57][%emt 0:00:31]} 26... Rxd7 {[%clk 0:24:24][%emt
0:00:09]} 27. Re1 {[%clk 0:39:45][%emt 0:04:40]} 27... Bf6 {[%clk
0:23:42][%emt 0:01:12]} 28. Re3 {[%clk 0:36:43][%emt 0:03:32]} 28... Rd5
{[%clk 0:22:49][%emt 0:01:24]} 29. b4 {[%clk 0:36:58][%emt 0:00:15]} 29... a6
{[%clk 0:22:23][%emt 0:00:56]} 30. c4 {[%clk 0:33:44][%emt 0:03:44]} 30... Rd8
{[%clk 0:21:59][%emt 0:00:54]} 31. Rd3 {[%clk 0:33:51][%emt 0:00:22]} 31...
Rxd3 {[%clk 0:21:55][%emt 0:00:34]} 32. Kxd3 {[%clk 0:34:04][%emt 0:00:17]}
32... e5 {[%clk 0:22:17][%emt 0:00:09]} 33. Nd2 {[%clk 0:33:53][%emt 0:00:39]}
33... e4+ {[%clk 0:22:36][%emt 0:00:13]} 34. Kc2 {[%clk 0:33:05][%emt 0:01:18]}
 34... Bd4 {[%clk 0:18:01][%emt 0:05:05]} 35. f3 {[%clk 0:32:27][%emt 0:01:08]}
 35... exf3 {[%clk 0:17:03][%emt 0:01:28]} 36. gxf3 {[%clk 0:32:37][%emt
0:00:20]} 36... Bf2 {[%clk 0:17:14][%emt 0:00:19]} 37. Nf1 {[%clk
0:32:54][%emt 0:00:12]} 37... Be1 {[%clk 0:17:02][%emt 0:00:42]} 38. Kb3
{[%clk 0:33:09][%emt 0:00:15]} 38... Kd6 {[%clk 0:16:59][%emt 0:00:32]} 39.
Ka4 {[%clk 0:32:45][%emt 0:00:53]} 39... h5 {[%clk 0:17:09][%emt 0:00:21]} 40.
b5 {[%clk 0:31:12][%emt 0:02:03]} 40... f4 {[%clk 0:16:37][%emt 0:01:03]} 41.
gxf4 {[%clk 0:27:44][%emt 0:03:57]} 41... h4 {[%clk 0:16:51][%emt 0:00:16]}
42. Kb3 {[%clk 0:25:56][%emt 0:02:19]} 42... Kc5 {[%clk 0:16:03][%emt 0:01:18]}
 43. bxa6 {[%clk 0:22:13][%emt 0:04:13]} 43... bxa6 {[%clk 0:16:25][%emt
0:00:07]} 44. Kc2 {[%clk 0:22:26][%emt 0:00:17]} 44... Bg3 {[%clk
0:16:24][%emt 0:00:32]} 45. Nd2 {[%clk 0:22:40][%emt 0:00:15]} 45... Bxf4
{[%clk 0:16:15][%emt 0:00:40]} 46. Ne4+ {[%clk 0:22:59][%emt 0:00:10]} 46...
Kxc4 {[%clk 0:16:38][%emt 0:00:08]} 47. Nf2 {[%clk 0:23:04][%emt 0:00:25]}
47... g5 {[%clk 0:16:37][%emt 0:00:31]} 48. Kd1 {[%clk 0:21:50][%emt 0:01:44]}
48... Kb5 {[%clk 0:16:51][%emt 0:00:16]} 49. Kc2 {[%clk 0:16:37][%emt 0:05:42]}
 49... Kxa5 {[%clk 0:17:01][%emt 0:00:21]} 50. Kb3 {[%clk 0:16:47][%emt
0:00:16]} 50... Kb5 {[%clk 0:17:24][%emt 0:00:10]} 51. Ka3 {[%clk
0:16:00][%emt 0:01:18]} 51... a5 {[%clk 0:17:50][%emt 0:00:05]} 52. Kb3 {[%clk
0:15:16][%emt 0:01:14]} 52... a4+ {[%clk 0:18:14][%emt 0:00:05]} 53. Ka2
{[%clk 0:15:28][%emt 0:00:16]} 53... Be3 {[%clk 0:18:34][%emt 0:00:11]} 54.
Nd1 {[%clk 0:12:09][%emt 0:03:49]} 54... Bd4 {[%clk 0:18:54][%emt 0:00:10]}
55. f4 {[%clk 0:11:22][%emt 0:01:16]} 55... gxf4 {[%clk 0:19:06][%emt 0:00:20]}
 56. Nc3+ {[%clk 0:11:27][%emt 0:00:24]} 56... Bxc3 {[%clk 0:19:34][%emt
0:00:02]} 57. Kb1 {[%clk 0:11:48][%emt 0:00:09]} 57... h3 {[%clk 0:20:01][%emt
0:00:04]} 0-1

[White "DO, Alex"]
[Black "GUEGUEN, Hector"]
[WhiteElo "1683"]
[BlackElo "1797"]
[Result "1-0"]
[Date "2026.03.06"]

[Event "Chpt Reg Jeunes Occitanie 2026 - Espalion"]
[Site "Espalion, France"]
[Round "5.15"]
[ECO "?"]
[Annotator "?"]
[TimeControl "1h30 + 30sec/cp"]

1. e4 {[%clk 1:30:52][%emt 0:00:07]} 1... c5 {[%clk 1:30:57][%emt 0:00:04]} 2.
Nf3 {[%clk 1:30:59][%emt 0:00:23]} 2... Nc6 {[%clk 1:31:22][%emt 0:00:05]} 3.
Bc4 {[%clk 1:30:46][%emt 0:00:42]} 3... g6 {[%clk 1:31:15][%emt 0:00:37]} 4.
d3 {[%clk 1:30:53][%emt 0:00:23]} 4... Bg7 {[%clk 1:31:38][%emt 0:00:06]} 5.
c3 {[%clk 1:29:39][%emt 0:01:45]} 5... Nf6 {[%clk 1:31:29][%emt 0:00:39]} 6.
Be3 {[%emt 0:01:50]} 6... d6 {[%clk 1:30:47][%emt 0:01:09]} 7. Nbd2 {[%clk
1:26:55][%emt 0:01:57]} 7... O-O {[%clk 1:30:05][%emt 0:01:12]} 8. O-O {[%clk
1:26:27][%emt 0:00:59]} 8... a6 {[%clk 1:29:46][%emt 0:00:50]} 9. Re1 {[%clk
1:24:46][%emt 0:02:09]} 9... b5 {[%clk 1:25:55][%emt 0:04:21]} 10. Bb3 {[%clk
1:23:49][%emt 0:01:27]} 10... Bd7 {[%clk 1:22:44][%emt 0:03:41]} 11. a3 {[%clk
1:20:37][%emt 0:03:42]} 11... Qc7 {[%clk 1:21:55][%emt 0:01:20]} 12. Qc2
{[%clk 1:20:12][%emt 0:00:54]} 12... h6 {[%clk 1:19:14][%emt 0:03:11]} 13.
Rad1 {[%clk 1:19:09][%emt 0:01:33]} 13... Rfc8 {[%clk 1:18:29][%emt 0:01:15]}
14. d4 {[%clk 1:12:53][%emt 0:06:47]} 14... Ng4 {[%clk 1:15:20][%emt 0:03:39]}
15. dxc5 {[%clk 1:11:12][%emt 0:02:11]} 15... Nxe3 {[%clk 1:15:30][%emt
0:00:20]} 16. Rxe3 {[%clk 1:09:48][%emt 0:01:53]} 16... dxc5 {[%clk
1:14:57][%emt 0:01:03]} 17. c4 {[%clk 0:59:42][%emt 0:10:36]} 17... Nd4 {[%clk
1:11:22][%emt 0:04:05]} 18. Nxd4 {[%clk 0:59:32][%emt 0:00:40]} 18... Bxd4
{[%clk 1:06:25][%emt 0:05:27]} 19. Rd3 {[%clk 0:53:52][%emt 0:06:11]} 19...
Bg4 {[%clk 1:06:00][%emt 0:00:55]} 20. Nf3 {[%clk 0:52:43][%emt 0:01:39]}
20... Qf4 {[%clk 1:04:29][%emt 0:02:00]} 21. h3 {[%clk 0:50:49][%emt 0:02:24]}
21... Be6 {[%clk 1:02:30][%emt 0:02:29]} 22. Nxd4 {[%clk 0:49:32][%emt
0:01:47]} 22... cxd4 {[%clk 1:02:15][%emt 0:00:45]} 23. Rxd4 {[%clk
0:49:12][%emt 0:00:51]} 23... bxc4 {[%clk 0:59:37][%emt 0:03:08]} 24. Bxc4
{[%clk 0:48:48][%emt 0:00:54]} 24... Qc7 {[%clk 0:54:48][%emt 0:05:18]} 25. b3
{[%clk 0:48:25][%emt 0:00:53]} 25... Qc5 {[%clk 0:54:38][%emt 0:00:41]} 26. a4
{[%clk 0:47:15][%emt 0:01:40]} 26... Rcb8 {[%clk 0:53:24][%emt 0:01:44]} 27.
Qd3 {[%clk 0:46:25][%emt 0:01:19]} 27... Bxc4 {[%clk 0:52:59][%emt 0:00:55]}
28. Rxc4 {[%clk 0:46:25][%emt 0:00:30]} 28... Qa3 {[%clk 0:51:58][%emt
0:01:30]} 29. Rdc1 {[%clk 0:40:50][%emt 0:06:06]} 29... Rd8 {[%clk
0:44:04][%emt 0:08:23]} 30. Qe3 {[%clk 0:39:38][%emt 0:01:43]} 30... h5 {[%clk
0:43:49][%emt 0:00:44]} 31. R4c3 {[%clk 0:39:00][%emt 0:01:08]} 31... Qd6
{[%clk 0:42:17][%emt 0:02:03]} 32. Rc6 {[%clk 0:38:11][%emt 0:01:19]} 32...
Qe5 {[%clk 0:42:02][%emt 0:00:44]} 33. f3 {[%clk 0:37:09][%emt 0:01:32]} 33...
Qb2 {[%clk 0:40:38][%emt 0:01:55]} 34. Qc3 {[%clk 0:36:35][%emt 0:01:03]}
34... Qe2 {[%clk 0:39:40][%emt 0:01:28]} 35. Qc4 {[%clk 0:35:54][%emt 0:01:12]}
 35... Qe3+ {[%clk 0:36:35][%emt 0:03:34]} 36. Kh1 {[%clk 0:35:16][%emt
0:01:09]} 36... Rd2 {[%clk 0:35:46][%emt 0:01:20]} 37. Rxg6+ {[%clk
0:34:28][%emt 0:01:18]} 37... Kh8 {[%clk 0:35:01][%emt 0:01:14]} 38. Qxf7
{[%clk 0:34:03][%emt 0:00:55]} 38... Qd4 {[%clk 0:35:27][%emt 0:00:04]} 39.
Rh6# {[%clk 0:33:34][%emt 0:00:24]} 1-0

[White "VILLEMIN CHARTIER, Elias"]
[Black "BAUER, Pierre"]
[WhiteElo "1900"]
[BlackElo "2174"]
[Result "1-0"]
[Date "2026.03.06"]